Cogmind - Beta 14 @@@ ROGUE MODE // 2024.10.23 @ 21:51:54 Player: THN-L0C Result: Destroyed by VX-AVJ(z) with Zionite Laser-S Performance ------------- Evolutions (3) 1500 Regions Visited (10) 2000 Robots Destroyed (57) 285 Value Destroyed (1268) 1268 Prototype IDs (38) 760 Alien Tech Used (0) 0 Bonus (237) 237 TOTAL SCORE: 6050 Bonus ------- Follower Combat Kills 284 Aligned with FarCom 300 Friendly Fire -347 Cogmind --------- Core Integrity 0/700 Matter 220/300 Energy 890/890 System Corruption 13% Temperature Cool (15) Movement Walking (210) Ox1 Location -7/Deep Caves Parts ------- > --- POWER (2) -------- Improved Deuterium Engine Zionite Light DM Reactor > --- PROPULSION (2) --- Makeshift Leg Makeshift Leg > --- UTILITY (6) ------ High-capacity Storage Unit Zionite Biocell Weapon Cycler Zionite Weapon Casing Zionite Light Carapace Makeshift Light Armor Plating > --- WEAPON (3) ------- Rocket Launcher Datajack Makeshift Sword > --- INVENTORY (20) --- Zionite Light DM Reactor Makeshift Leg Zionite Glidesys I High-capacity Matter Pod (200) High-capacity Matter Pod (200) 0b10 Decoder Chip [Generic] 0b10 Decoder Chip [Looter] 0b10 Decoder Chip [Scout] 0b10 Decoder Chip [Skirmisher] 0b10 Decoder Chip [Skirmisher] Core Analyzer Phase Shifter Zionite Weapon Casing Zionite Light Carapace Improved Field Recycling Unit (0) Shock Rifle Lightning Gun Latent Energy Streamer Chainsword Peak State ------------ > --- POWER ------------ Enhanced Nuclear Core Enhanced Nuclear Core > --- PROPULSION ------- Carbon-fiber Leg Carbon-fiber Leg > --- UTILITY ---------- High-capacity Storage Unit Compact Matter Pod Advanced Weight Redist. System Propulsion Shielding Improved Light Armor Plating Improved Medium Armor Plating > --- WEAPON ----------- Latent Energy Streamer RU-N14's Throwing Claymores RU-N14's Throwing Claymores > --- INVENTORY -------- Light Angular Momentum Engine Carbon-fiber Leg High-capacity Matter Pod High-capacity Matter Pod 0b10 Decoder Chip [Generic] 0b10 Decoder Chip [Looter] 0b10 Decoder Chip [Scout] 0b10 Decoder Chip [Skirmisher] 0b10 Decoder Chip [Skirmisher] Core Analyzer Weapon Cycler Improved Field Recycling Unit Shock Rifle Lightning Gun Field Laser Rocket Launcher Missile Launcher RU-N14's Throwing Claymores RU-N14's Throwing Claymores Chainsword [Rating: 63] Favorites ----------- Power Enhanced Nuclear Core Engine Ion Engine Power Core Enhanced Nuclear Core Reactor Zionite Light DM Reactor Propulsion Carbon-fiber Leg Treads Light Treads Leg Carbon-fiber Leg Hover Unit Zionite Glidesys I Utility High-capacity Storage Unit Device Advanced Weight Redist. System Storage High-capacity Storage Unit Processor Armor Integrity Analyzer Protection Propulsion Shielding Weapon Light Cannon Energy Gun Field Laser Energy Cannon Latent Energy Streamer Ballistic Gun Light Assault Rifle Ballistic Cannon Light Cannon Launcher Rocket Launcher Special Weapon RU-N14's Throwing Claymores Slashing Weapon Chainsword Piercing Weapon Makeshift Spear Special Melee Weapon Datajack Build | -11 -10 -10 -10 -9 -8 -7 -7 -7 -7 -7 ------- Run | Yrd Mat Min Exi Min Mat Fac Low Low Zio Dee Slots Evolved 6 | . . . . . 4 2 . . . . Power 1 | . . . . . . 1 . . . . Propulsion . | . . . . . . . . . . . Utility 4 | . . . . . 4 . . . . . Weapon 1 | . . . . . . 1 . . . . Parts Attached 105 | 7 5 . . 4 12 3 12 4 47 11 Power 19 | 1 3 . . . 1 2 2 . 9 1 Engine 12 | 1 3 . . . . . . . 8 . Core 6 | . . . . . 1 2 2 . 1 . Reactor 1 | . . . . . . . . . . 1 Propulsion 19 | 2 . . . . 3 1 1 1 9 2 Treads 3 | 2 . . . . 1 . . . . . Leg 15 | . . . . . 2 1 1 1 9 1 Wheel . | . . . . . . . . . . . Hover 1 | . . . . . . . . . . 1 Flight . | . . . . . . . . . . . Utility 34 | 2 . . . 2 6 . 6 2 12 4 Device 11 | 1 . . . 1 2 . 3 1 2 1 Storage 4 | 1 . . . 1 1 . . . . 1 Processor 1 | . . . . . . . . . 1 . Hackware . | . . . . . . . . . . . Protection 18 | . . . . . 3 . 3 1 9 2 Artifact . | . . . . . . . . . . . Weapon 33 | 2 2 . . 2 2 . 3 1 17 4 Energy Gun 4 | . . . . . 1 . 2 . 1 . Energy Cannon 3 | . . . . . . . . . 3 . Ballistic Gun 2 | 2 . . . . . . . . . . Ballistic Cannon 5 | . 2 . . 2 1 . . . . . Launcher 6 | . . . . . . . . 1 3 2 Special Weapon 4 | . . . . . . . . . 4 . Impact Weapon . | . . . . . . . . . . . Slashing Weapon 7 | . . . . . . . 1 . 5 1 Piercing Weapon 1 | . . . . . . . . . 1 . Special Melee Weapon 1 | . . . . . . . . . . 1 Unidentified Prototypes 8 | . . . . . 1 1 1 . 1 4 Parts Lost 31 | . 1 . . . . . 6 6 18 . Power 3 | . 1 . . . . . . . 2 . Propulsion 7 | . . . . . . . 1 1 5 . Utility 15 | . . . . . . . 3 4 8 . Weapon 6 | . . . . . . . 2 1 3 . Highest Loss Streak 5 | . 1 . . . . . 5 3 5 . To Critical Strikes . | . . . . . . . . . . . Average Slot Usage (%) 93 | . 99 100 100 100 87 89 98 96 90 82 Engine 5 | . 13 14 14 14 4 . . . 2 12 Core 8 | . . . . . 4 12 15 15 12 . Treads 8 | . 28 28 28 28 15 . . . . . Leg 9 | . . . . . 2 15 14 15 13 15 Device 13 | . 14 14 14 14 19 23 16 13 12 7 Storage 13 | . 14 14 14 14 13 15 15 15 14 7 Processor 1 | . . . . . . . . . 2 . Protection 9 | . . . . . 8 7 13 14 12 17 Energy Gun 1 | . . . . . . . 7 13 . . Ballistic Cannon 9 | . 27 28 28 28 17 15 11 . . . Launcher 1 | . . . . . . . . 3 1 4 Special Weapon 4 | . . . . . . . . . 9 . Slashing Weapon 3 | . . . . . . . 1 3 5 7 Peak Build Rating 63 | 7 8 8 9 14 33 42 50 50 63 63 Average Rating 36 | 5 7 7 8 10 23 38 44 48 50 44 On Entrance 22 | . 7 8 8 9 14 33 42 50 38 34 Naked Turns . | . . . . . . . . . . . Heaviest Build 94 | 11 17 17 17 55 64 72 79 79 94 76 Greatest Support 52 | 40 40 40 40 40 52 33 42 42 49 40 Greatest Overweight (x) 4 | 3 . . . 1 2 2 2 2 4 1 Average Overweight (x) 1 | . . . . . 1 2 1 1 1 1 Largest Inventory Capacity 20 | 8 8 8 8 20 20 20 20 20 20 20 Average Capacity 16 | 7 8 8 8 10 20 20 20 20 20 20 Most Carried 20 | 1 8 8 8 11 20 20 20 16 20 20 Average Carried 15 | . 6 7 7 8 18 19 17 14 19 16 Final Capacity 20 | 8 8 8 8 20 20 20 20 20 20 20 Final Carried 20 | 1 8 8 8 11 20 20 14 15 18 19 Class Distribution -------------------- 66% | Mutant 14% | Tank 13% | Scavenger-Mutant 5% | Derelict-Mutant Dominant Class ---------------- Mutant | -10/Materials Mutant | -10/Mines Mutant | -10/Exiles Mutant | -9/Mines Mutant | -8/Materials Mutant | -7/Factory Tank | -7/Lower Caves Mutant | -7/Lower Caves Mutant | -7/Zion Scavenger-Mutant | -7/Deep Caves Resources | -11 -10 -10 -10 -9 -8 -7 -7 -7 -7 -7 ----------- Run | Yrd Mat Min Exi Min Mat Fac Low Low Zio Dee Matter Collected 2479 | 158 282 164 308 40 292 . 277 124 670 164 Remotely . | . . . . . . . . . . . Salvage Created 1335 | 69 291 . . . 90 . 279 173 433 . Parts 106 | 3 26 . . . 5 . 16 12 44 . Haulers Intercepted 1 | . 1 . . . . . . . . . Recyclers Shooed 2 | 1 1 . . . . . . . . . Parts Field Recycled . | . . . . . . . . . . . Retrieved Matter . | . . . . . . . . . . . Parts Self-Destructed 28 | . . . . . . . 16 11 1 . Prevented 1 | . . . . . . . 1 . . . Kills | -11 -10 -10 -10 -9 -8 -7 -7 -7 -7 -7 ------- Run | Yrd Mat Min Exi Min Mat Fac Low Low Zio Dee Combat Hostiles Destroyed 32 | . 12 . . . 2 . 8 9 1 . Melee 3 | . . . . . . . 1 2 . . Guns 2 | . . . . . . . 2 . . . Cannons 19 | . 12 . . . 2 . 5 . . . AOE 8 | . . . . . . . . 7 1 . Classes Destroyed 10 | 2 3 . . . 1 . 1 . 3 . Tunneler 2 | 1 . 1 . . . . . . . . Hauler 1 | . 1 . . . . . . . . . Recycler 1 | 1 . . . . . . . . . . Swarmer 15 | . 6 . . . . . 2 7 . . Grunt 11 | . 6 . . . . . 3 2 . . Sentry 3 | . . . . . 2 . 1 . . . Programmer 2 | . . . . . . . 2 . . . Zionite 24 | . . . . . . . . . 24 . Tinkerer 1 | . . . . . . . . . 1 . Mutant 1 | . . . . . . . . . 1 . Best Kill Streak 7 | 2 3 1 . . 1 . 4 4 7 . Combat Bots Only 4 | . 3 . . . 1 . 4 4 1 . Max Kills in Single Turn 2 | 1 1 1 . . 1 . 1 2 2 . Gunslinging . | . . . . . . . . . . . Exploded 2 | . . . . . . . . 2 1 . Melee 1 | . . . . . . . 1 1 . . Uniques/NPCs Destroyed 1 | . . . . . . . . . 1 . Imprinter (-7/Zion) Combat | -11 -10 -10 -10 -9 -8 -7 -7 -7 -7 -7 -------- Run | Yrd Mat Min Exi Min Mat Fac Low Low Zio Dee Hostile Shots Fired 371 | . 51 . . 1 4 14 75 56 165 5 Missed 114 | . 12 . . . . 5 14 16 66 1 Damage Taken 5035 | . 386 . . 10 53 114 1165 704 2477 126 Core 760 | . 54 . . . . 17 106 72 481 30 Absorbed by Shields . | . . . . . . . . . . . Redirected to Shielding 203 | . . . . . 7 . 46 58 92 . Regen/Repaired (Parts) 65 | . . . . . . . . . 65 . Core Remaining (%) 92 | 100 . . . 78 100 . . . . . Volleys Fired 109 | 7 30 1 . . 4 . 20 9 35 3 Largest 3 | 2 2 2 . . 2 . 3 2 2 1 Hottest 131 | 40 70 70 . . 70 . 131 124 93 33 Shots Fired 191 | 14 60 2 . . 8 . 55 12 36 4 Gun 54 | 14 . . . . . . 18 5 17 . Cannon 109 | . 60 2 . . 8 . 37 . 2 . Launcher 18 | . . . . . . . . 7 7 4 Special 10 | . . . . . . . . . 10 . Kinetic 121 | 14 60 2 . . 8 . 37 . . . Thermal 40 | . . . . . . . 18 5 17 . Explosive 28 | . . . . . . . . 7 17 4 Electromagnetic 2 | . . . . . . . . . 2 . Robot Hit Streak 7 | 5 7 4 . . 4 . 7 4 6 1 Robot Miss Streak 5 | 2 5 . . . 2 . 2 2 3 . Penetration Max . | . . . . . . . . . . . Secondary Targets . | . . . . . . . . . . . Shots Hit Robots 129 | 8 22 2 . . 5 . 38 12 40 2 Core Hits 75 | 4 14 2 . . 2 . 14 11 26 2 Critical Kills . | . . . . . . . . . . . Critical Parts Destroyed . | . . . . . . . . . . . Critical Strikes 12 | . . . . . . . 5 3 4 . Burn 3 | . . . . . . . 2 1 . . Blast 1 | . . . . . . . 1 . . . Sever 8 | . . . . . . . 2 2 4 . Melee Attacks 71 | . . . . . . . 9 6 46 10 Impact . | . . . . . . . . . . . Slashing 59 | . . . . . . . 9 6 35 9 Piercing 11 | . . . . . . . . . 11 . Sneak Attacks 1 | . . . . . . . . . . 1 Combat Hostiles . | . . . . . . . . . . . Follow-up Attacks 4 | . . . . . . . . . 4 . Damage Inflicted 4817 | 67 409 50 . . 98 . 903 925 2160 205 Guns 485 | 67 . . . . . . 210 72 136 . Cannons 975 | . 400 32 . . 98 . 445 . . . Explosions 1953 | . . . . . . . . 626 1122 205 Melee 1103 | . . . . . . . 248 226 629 . Ramming 28 | . 9 18 . . . . . 1 . . Kinetic 1042 | 67 400 32 . . 98 . 445 . . . Thermal 418 | . . . . . . . 210 72 136 . Explosive 1842 | . . . . . . . . 626 1011 205 Electromagnetic 111 | . . . . . . . . . 111 . Impact . | . . . . . . . . . . . Slashing 1255 | . . . . . . . 248 226 781 . Piercing 121 | . . . . . . . . . 121 . Highest Corruption 13 | . . . . . . . 2 2 13 13 Average Corruption 5 | . . . . . . . 1 2 4 13 Corruption Purged . | . . . . . . . . . . . Corruption Blocked . | . . . . . . . . . . . Effects 90 | . . . . . . . 3 6 59 22 Message Errors 22 | . . . . . . . 1 3 15 3 Matter Fused 21 | . . . . . . . 1 1 13 6 Heat Flow Errors 11 | . . . . . . . . . 7 4 Energy Discharges 10 | . . . . . . . . 2 6 2 Parts Rejected 1 | . . . . . . . . . 1 . Data Loss (minor) 10 | . . . . . . . . . 7 3 Data Loss (major) 6 | . . . . . . . . . 4 2 Misfires 3 | . . . . . . . 1 . 1 1 Alerts 4 | . . . . . . . . . 3 1 Misdirections 1 | . . . . . . . . . 1 . Weapon Failures 1 | . . . . . . . . . 1 . Overload Shots . | . . . . . . . . . . . Overflow Damage 94 | . . . . . . . . 19 71 4 Projectiles . | . . . . . . . . . . . Explosions 94 | . . . . . . . . 19 71 4 Melee . | . . . . . . . . . . . Knockbacks 10 | . 7 . . . . . 3 . . . Impact . | . . . . . . . . . . . Kinetic 9 | . 7 . . . . . 2 . . . Secondary 1 | . . . . . . . 1 . . . Self-Inflicted Damage 212 | . . . . . . . . 48 153 11 Shots 4 | . . . . . . . . 1 2 1 Rammed 17 | . 5 12 . . . . . . . . Targets Rammed 19 | . 5 13 . . . . . 1 . . Kicked 1 | . . . . . . . . 1 . . Crushed 1 | . . 1 . . . . . . . . Highest Temperature 348 | . 54 9 . . . . 348 228 340 260 Average Temperature 85 | . 18 6 . . . . 122 89 85 103 Received Heat Transfer 672 | . 72 . . 6 18 . 252 162 126 36 Effects 4 | . . . . . . . 2 2 . . Energy Bleed 1 | . . . . . . . 1 . . . Interference 2 | . . . . . . . . 2 . . Short Circuit 1 | . . . . . . . 1 . . . Siege Activations . | . . . . . . . . . . . Robots Corrupted 1 | . . . . . . . . . 1 . Combat Hostiles . | . . . . . . . . . . . Parts Fried 1 | . . . . . . . . . 1 . Impact Corruptions . | . . . . . . . . . . . Robots Melted 1 | . . . . . . . . . 1 . Combat Hostiles . | . . . . . . . . . . . Parts Melted 4 | . . . . . . . . . 4 . Heat Transferred 987 | . . . . . . . 481 222 284 . Parts Sabotaged . | . . . . . . . . . . . Parts Stolen . | . . . . . . . . . . . Parts Stripped . | . . . . . . . . . . . Power Chain Reactions . | . . . . . . . . . . . Latent Energy Used 241 | . . . . . . . . . 241 . LE Corruption 4 | . . . . . . . . . 4 . Alert | -11 -10 -10 -10 -9 -8 -7 -7 -7 -7 -7 ------- Run | Yrd Mat Min Exi Min Mat Fac Low Low Zio Dee Peak Influence 187 | 10 187 19 . 32 72 . . . . . Initial 14 | . 6 14 . . 12 . . . . . Average 35 | 3 70 17 . 11 9 . . . . . Maximum Alert Level . | . . . . . . . . . . . Low Security (%) 100 | 100 100 100 . 100 100 100 . . . . Level 1 . | . . . . . . . . . . . Level 2 . | . . . . . . . . . . . Level 3 . | . . . . . . . . . . . Level 4 . | . . . . . . . . . . . Level 5 . | . . . . . . . . . . . High Security . | . . . . . . . . . . . Max Security . | . . . . . . . . . . . Squads Dispatched 12 | . 1 . . 1 8 1 . 1 . . Investigation 2 | . . . . 1 . 1 . . . . Extermination . | . . . . . . . . . . . Reinforcement 6 | . 1 . . . 5 . . . . . Assault 1 | . . . . . . . . 1 . . Garrison 3 | . . . . . 3 . . . . . Intercept . | . . . . . . . . . . . Searches Triggered . | . . . . . . . . . . . Construction Impeded . | . . . . . . . . . . . Haulers Reinforced . | . . . . . . . . . . . Active Scanning Responses . | . . . . . . . . . . . Cargo Convoy Interrupts . | . . . . . . . . . . . Stealth | -11 -10 -10 -10 -9 -8 -7 -7 -7 -7 -7 --------- Run | Yrd Mat Min Exi Min Mat Fac Low Low Zio Dee Distress Signals 8 | . 2 . . . 6 . . . . . Communications Jammed . | . . . . . . . . . . . Distress Signals . | . . . . . . . . . . . Times Spotted 81 | . 21 . . 2 5 1 9 16 26 1 Peak Tracking Total 6 | . 4 . . 2 2 1 5 6 4 2 Tactical Retreats 3 | . 1 . . . . . 1 1 . . Traps | -11 -10 -10 -10 -9 -8 -7 -7 -7 -7 -7 ------- Run | Yrd Mat Min Exi Min Mat Fac Low Low Zio Dee Traps Triggered 3 | . 2 . . . . 1 . . . . Indirectly . | . . . . . . . . . . . Trap Hack Attempts . | . . . . . . . . . . . Triggered . | . . . . . . . . . . . Disarmed . | . . . . . . . . . . . Reprogrammed . | . . . . . . . . . . . Reused . | . . . . . . . . . . . Traps Extracted . | . . . . . . . . . . . Installed . | . . . . . . . . . . . Triggered 2 | . . . . . . . 2 . . . Machines | -11 -10 -10 -10 -9 -8 -7 -7 -7 -7 -7 ---------- Run | Yrd Mat Min Exi Min Mat Fac Low Low Zio Dee Machines Disabled 5 | . 1 . . . . . . . 3 1 Max in Single Turn 3 | . 1 . . . . . . . 3 . Machines Repaired . | . . . . . . . . . . . Machines Dismantled . | . . . . . . . . . . . Machines Sabotaged . | . . . . . . . . . . . Overloaded Fab Kills . | . . . . . . . . . . . Hacking | -11 -10 -10 -10 -9 -8 -7 -7 -7 -7 -7 --------- Run | Yrd Mat Min Exi Min Mat Fac Low Low Zio Dee Machines Accessed 12 | . 6 . 1 1 2 . 2 . . . Terminals 7 | . 5 . . . 2 . . . . . Fabricators . | . . . . . . . . . . . Repair Stations . | . . . . . . . . . . . Recycling Units 1 | . 1 . . . . . . . . . Scanalyzers . | . . . . . . . . . . . Garrison Access . | . . . . . . . . . . . Total Hacks 35 | . 20 . 1 1 5 . 8 . . . Successful 20 | . 8 . 1 1 2 . 8 . . . Failed 15 | . 12 . . . 3 . . . . . Catastrophic 1 | . 1 . . . . . . . . . Database Lockouts . | . . . . . . . . . . . Manual 23 | . 17 . 1 . 5 . . . . . Terminals 22 | . 17 . . . 5 . . . . . Fabricators . | . . . . . . . . . . . Repair Stations . | . . . . . . . . . . . Recycling Units 3 | . 3 . . . . . . . . . Scanalyzers . | . . . . . . . . . . . Garrison Access . | . . . . . . . . . . . Terminal Hacks 11 | . 1 . 1 1 . . 8 . . . Record 7 | . . . . . . . 7 . . . Robot Analysis 1 | . 1 . . . . . . . . . Open Door 2 | . . . . 1 . . 1 . . . Derelict Proto ID Bank 1 | . . . 1 . . . . . . . Fabricator Hacks . | . . . . . . . . . . . Repair Station Hacks . | . . . . . . . . . . . Recycling Unit Hacks 1 | . 1 . . . . . . . . . Retrieve Components 1 | . 1 . . . . . . . . . Scanalyzer . | . . . . . . . . . . . Garrison Access Hacks . | . . . . . . . . . . . Unauthorized Hacks 8 | . 6 . . . 2 . . . . . Terminals 8 | . 6 . . . 2 . . . . . Botnet 2 | . 1 . . . 1 . . . . . Skim 6 | . 5 . . . 1 . . . . . Fabricators . | . . . . . . . . . . . Repair Stations . | . . . . . . . . . . . Recycling Units . | . . . . . . . . . . . Scanalyzers . | . . . . . . . . . . . Garrison Access . | . . . . . . . . . . . Data Cores Recovered . | . . . . . . . . . . . Used . | . . . . . . . . . . . Hacking Detections 8 | . 6 . . . 2 . . . . . Full Trace Events . | . . . . . . . . . . . Feedback Events . | . . . . . . . . . . . Feedback Blocked . | . . . . . . . . . . . Robot Schematics Acquired 3 | . . . . . . . . . 3 . Robots Built . | . . . . . . . . . . . Authchips . | . . . . . . . . . . . Time . | . . . . . . . . . . . Total Robot Build Rating . | . . . . . . . . . . . Part Schematics Acquired 15 | . . . . . . . . . 15 . Parts Built . | . . . . . . . . . . . Authchips . | . . . . . . . . . . . Time . | . . . . . . . . . . . Total Part Build Rating . | . . . . . . . . . . . Parts Repaired . | . . . . . . . . . . . Time . | . . . . . . . . . . . Parts Recycled . | . . . . . . . . . . . Recycled Matter . | . . . . . . . . . . . Retrieved Matter . | . . . . . . . . . . . Retrieved Components 9 | . 9 . . . . . . . . . Parts Scanalyzed . | . . . . . . . . . . . Part Schematics Acquired . | . . . . . . . . . . . Parts Damaged . | . . . . . . . . . . . Bothacking | -11 -10 -10 -10 -9 -8 -7 -7 -7 -7 -7 ------------ Run | Yrd Mat Min Exi Min Mat Fac Low Low Zio Dee Used RIF Installer . | . . . . . . . . . . . Robots Hacked 1 | . . . . . . . . . . 1 Non-combat . | . . . . . . . . . . . Combat 1 | . . . . . . . . . . 1 Robot Hacks Applied 1 | . . . . . . . . . . 1 parse_system 1 | . . . . . . . . . . 1 Relay Couplers Released . | . . . . . . . . . . . Fabnet Peak Effective % . | . . . . . . . . . . . Robots Rewired . | . . . . . . . . . . . Allies Hacked . | . . . . . . . . . . . Hacks Repelled . | . . . . . . . . . . . Allies | -11 -10 -10 -10 -9 -8 -7 -7 -7 -7 -7 -------- Run | Yrd Mat Min Exi Min Mat Fac Low Low Zio Dee Total Allies 2 | . . . . 1 . . . . . 1 Largest Group 1 | . . . . 1 . . . . . 1 Highest-Rated Group 119 | . . . . 31 . . . . . 119 Highest-Rated Ally 119 | . . . . 31 . . . . . 119 Total Orders . | . . . . . . . . . . . Ally Attacks 50 | . . . . 2 . . . . . 48 Total Damage 1635 | . . . . 22 . . . . . 1613 Kills 13 | . . . . 1 . . . . . 12 Allies Corrupted . | . . . . . . . . . . . Allies Melted . | . . . . . . . . . . . Intel | -11 -10 -10 -10 -9 -8 -7 -7 -7 -7 -7 ------- Run | Yrd Mat Min Exi Min Mat Fac Low Low Zio Dee Robot Analysis Total 1 | . 1 . . . . . . . . . Derelict Logs Recovered 3 | . . . . 1 . . 1 . 1 . Drone Launches . | . . . . . . . . . . . Drone Recoveries . | . . . . . . . . . . . Exploration | -11 -10 -10 -10 -9 -8 -7 -7 -7 -7 -7 ------------- Run | Yrd Mat Min Exi Min Mat Fac Low Low Zio Dee Turns Passed 11807 | 86 1466 427 716 367 881 225 899 753 5332 655 Spaces Moved 4663 | 41 591 145 447 201 347 79 385 311 1838 278 Core 108 | 14 . . . . . . . . 94 . Treads 1703 | 27 591 145 447 201 292 . . . . . Legs 2852 | . . . . . 55 79 385 311 1744 278 Wheels . | . . . . . . . . . . . Hover . | . . . . . . . . . . . Flight . | . . . . . . . . . . . Fastest Speed 50 | 50 160 160 160 160 190 260 190 190 190 210 Average Speed 208 | 140 160 160 160 173 239 260 206 213 235 210 Slowest Speed 260 | 200 160 160 160 240 260 260 260 260 260 210 Overloaded Moves . | . . . . . . . . . . . Propulsion Burnouts . | . . . . . . . . . . . Robots Hopped 1 | . . . . . . . . . 1 . Cave-ins Triggered . | . . . . . . . . . . . Exploration Rate (%) 45 | 4 87 38 71 35 34 3 55 51 83 40 Regions Visited 10 Branch Regions 7 Pre-discovered Areas 5 | . 1 1 . . . . 1 . 2 . Known Exits Taken 1 | . . . . . 1 . . . . . Unknown Exits Taken 9 | 1 1 1 1 1 . 1 1 1 1 . Scrap Searched 5 | . . . . 1 . . . 2 2 . Spaces Dug . | . . . . . . . . . . . Terrain Destroyed 148 | . . . . . . . . 61 80 7 Melee . | . . . . . . . . . . . Projectile . | . . . . . . . . . . . AOE 148 | . . . . . . . . 61 80 7 Terrain Rammed . | . . . . . . . . . . . Walls Destroyed . | . . . . . . . . . . . Machines Disabled . | . . . . . . . . . . . Actions | -11 -10 -10 -10 -9 -8 -7 -7 -7 -7 -7 --------- Run | Yrd Mat Min Exi Min Mat Fac Low Low Zio Dee Total 6493 | 55 1047 331 448 220 387 102 438 380 2749 336 Wait 1437 | . 410 171 . 4 9 11 10 46 752 24 Move 4651 | 40 590 144 446 200 346 78 384 310 1835 278 Hop 1 | . . . . . . . . . 1 . Pick Up 59 | 1 6 1 1 7 11 4 1 4 17 6 Fast Attach 31 | 7 1 . . . 4 1 1 . 14 3 Attach 28 | . . . . . . . 6 3 16 3 Detach 6 | . . . . . . . . . 5 1 Swap 46 | . 4 . . 4 8 2 5 1 17 5 Drop 40 | . 1 1 1 5 5 6 2 . 16 3 Fire 109 | 7 30 1 . . 4 . 20 9 35 3 Melee 66 | . . . . . . . 9 6 41 10 Ram . | . . . . . . . . . . . Kick 1 | . . . . . . . . 1 . . Crush 18 | . 5 13 . . . . . . . . Escape Stasis . | . . . . . . . . . . . Rewire . | . . . . . . . . . . . Trap . | . . . . . . . . . . . Miscellaneous . | . . . . . . . . . . . Route ------- -11/Scrapyard -10/Materials (discovered 4 exits: *Mat x2 / [*Min x2]) -10/Mines (discovered 3 exits: *Mat x2 / *Exi) -10/Exiles -9/Mines -8/Materials (discovered 2 exits: *Fac x2) -7/Factory -7/Lower Caves -7/Lower Caves -7/Zion (discovered 2 exits: [*Dee] / [*Pro]) -7/Deep Caves History --------- Turn | Location | Event 25 | -11/Scrapyard | Discovered new exit (range 16) 87 | -11/Scrapyard | Entered Materials 269 | -10/Materials | Discovered new exit (range 15) 310 | -10/Materials | Build established: Mutant 479 | -10/Materials | Discovered new exit (range 7) 651 | -10/Materials | Discovered new exit (range 12) 804 | -10/Materials | Discovered new exit (range 5) 1128 | -10/Materials | Learned 4 Recycling zone layouts 1204 | -10/Materials | Learned Storage security intel 1268 | -10/Materials | Learned Recycling recycling unit intel 1323 | -10/Materials | Learned location of 2 exits from Mines 1369 | -10/Materials | Learned location of 1 exit from Recycling 1487 | -10/Materials | Learned location of 2 exits from Subcaves 1553 | -10/Materials | Entered Mines 1554 | -10/Mines | Learned location of Storage (-9) 1554 | -10/Mines | Assembled infested the area 1554 | -10/Mines | Identified exit to Materials 1945 | -10/Mines | Found a damaged Exp. Sensor Array with a note attached 1949 | -10/Mines | Found Prototype Device 1971 | -10/Mines | Deemed a non-threat by the Exiles lab entrance 1972 | -10/Mines | Discovered new exit (range 5) 1980 | -10/Mines | Entered Exiles 2019 | -10/Exiles | Met 8R-AWN 2051 | -10/Exiles | Met EX-HEX 2094 | -10/Exiles | Met EX-BIN 2113 | -10/Exiles | Aligned with FarCom system 2115 | -10/Exiles | Given EX-Vault access code 2166 | -10/Exiles | Opened EX-Vault 2206 | -10/Exiles | Warned to stay clear of 0b10 Research branches 2321 | -10/Exiles | Met EX-DEC 2539 | -10/Exiles | Found Latent Energy Streamer 2680 | -10/Exiles | Discovered new exit (range 11) 2696 | -10/Exiles | Left Exiles lab with Latent Energy Streamer 2696 | -10/Exiles | Entered Mines 2783 | -9/Mines | Received a Mining Laser from a helpful Derelict 2910 | -9/Mines | Discovered new exit (range 7) 2924 | -9/Mines | Met a Derelict shopkeep closing up shop 3063 | -9/Mines | Entered Materials 3063 | -8/Materials | Evolved 4 slots: Utility x4 3064 | -8/Materials | Identified exit to Factory 3372 | -8/Materials | Garrison activated, responded to threat 3598 | -8/Materials | Met 7R-MNS 3770 | -8/Materials | Discovered exit to Factory (range 16) 3944 | -8/Materials | Entered Factory 3944 | -7/Factory | Evolved 2 slots: Power x1, Weapon x1 3945 | -7/Factory | Caught up to 7R-MNS 4104 | -7/Factory | Discovered new exit (range 16) 4169 | -7/Factory | Entered Lower Caves 4214 | -7/Lower Caves | Identified Exp. Sensor Array 4433 | -7/Lower Caves | Learned Factory emergency access door positions 4580 | -7/Lower Caves | Discovered new exit (range 10) 4604 | -7/Lower Caves | Build established: Tank 4907 | -7/Lower Caves | Lost 5 parts (1n2u2w) 4929 | -7/Lower Caves | Learned location of Extension (-4) 4929 | -7/Lower Caves | Learned Research trap positions 4929 | -7/Lower Caves | Learned Research security intel 5068 | -7/Lower Caves | Entered another Lower Caves area 5152 | -7/Lower Caves | Build established: Mutant 5805 | -7/Lower Caves | Discovered new exit (range 7) 5816 | -7/Lower Caves | Attracted the attention of an 0b10 outpost 5821 | -7/Lower Caves | Entered Zion 5852 | -7/Zion | Lost 3 parts (1n2u) 5910 | -7/Zion | System corruption cleaned by Quarantine Array 5976 | -7/Zion | Discovered new exit (range 15) 6035 | -7/Zion | Found Prototype Special Weapon 6038 | -7/Zion | Found Prototype Special Weapon 6038 | -7/Zion | Identified RU-N14's Throwing Claymores (x2) 6042 | -7/Zion | Found RU-N14's Throwing Claymores 6045 | -7/Zion | Found RU-N14's Throwing Claymores 6980 | -7/Zion | Learned location of Data Miner (-6) 7560 | -7/Zion | Learned location of 1 exit from Factory 8787 | -7/Zion | Build established: Tank 9248 | -7/Zion | Attacked by Zionites 9248 | -7/Zion | Warned about damaging Zion machinery 9385 | -7/Zion | Destroyed Imprinter 9388 | -7/Zion | Core integrity fell below 50% 9422 | -7/Zion | Lost 3 parts (1n1u1w) 9673 | -7/Zion | Build established: Derelict-Mutant 10103 | -7/Zion | Lost 4 parts (1p1n2u) 10518 | -7/Zion | Build established: Scavenger-Mutant 10849 | -7/Zion | Core integrity fell below 20% 11139 | -7/Zion | System corruption reached 10% 11146 | -7/Zion | Discovered new exit (range 4) 11146 | -7/Zion | Saw the warning signs outside the Deep Caves entrance 11153 | -7/Zion | Entered Deep Caves 11155 | -7/Deep Caves | Met 5H-AD0 11177 | -7/Deep Caves | Lost 5 parts (1n4u) 11290 | -7/Deep Caves | Z-Facility disabled 11642 | -7/Deep Caves | Found Zio. Weapon Casing 11677 | -7/Deep Caves | Found Zio. Weapon Casing 11808 | -7/Deep Caves | Destroyed by VX-AVJ(z) with Zionite Laser-S Last Messages --------------- 11678_ Acquired 10 matter. 11682_ Acquired Phase Shifter. 11687_ Dropped Imp. Deuterium Engine. 11688_ Acquired Prototype Hover Unit. 11699_ Dropped Lgt. Angular Momentum Engine. 11702_ Acquired Zio. Light Carapace. 11707_ Dropped Phase Shifter. 11707_ Acquired Phase Shifter. 11714_ System corrupted: Heat flow error (+154). 11724_ Acquired Prototype Hover Unit. 11724_ Identified Zio. Glidesys I. 11726_ Acquired Mak. Leg. 11731_ Acquired Prototype Storage. 11731_ Identified Zio. Biocell. 11735_ System corrupted: Matter fused (-7). 11766_ System corrupted: Energy discharge (-315). 11787_ System corrupted: Heat flow error (+282). 11803_ Destroyed Imp. Reaction Control System. 11804_ System corrupted: Component data lost. 11805_ Destroyed Zio. Biocell. Map ----- +----------------------------------------------------+ | | | | | | | | | | | | | | | | | | | | | ?????????????????????????????????????????????????? | | ?????????????????????*??#????!???????????????????? | | ?????????????????? # ??? =???????????????????? | | ????????????????z # ??? !??# ???????????? ? | | ?????????????? ;??? #?# ?????????? | | ?????????????? % =# #?? ## ???????? | | ????????????? ! ! ## ???????? | | ????????????? ???????? | | ???????????? !%= ???????? | | ???????????? =%! ????????? | | ???????????? !=!![ ????????? | | ??????????? !%! """??????????" | | ??????????? ! """"????????"" | | ??????????# """"???????""" | | ?????????? """"??????"""" | | ?????????? @ """"??""""" | | ??????????# """"?""""""""" | | ??????????# """""""""""""" | | ??????????? """""""""""""" | | ??????????? """""""""""""" | | ???????????? """"""""" " | | ???????????? """"""" ! = | | ???????????? """"" == | | ??????????? """""""" %/ | | ??????????? """"" * | | ??????????? """" """""" = | | ??????????? """" """"""" = | | ??????????? " " * | | ???????????? """ "" """ | | ???????????? """""" """"" | | ????????????? """""" """"""" | | ????????????? """"" """"""" | | ????????????? """" """"""" | | ????????????? """" ""?"" | | ???????????? """" ??? | | ???????????? """" ? * | | ???????????? """""?????"% | | ??????????? """"""""?? | | ??????????? ?? | | ?????????? ? | +----------------------------------------------------+ Best States ------------- Heat Dissipation 56 Energy Generation 38 Energy Capacity 890 Matter Stores 450 Matter Capacity 450 Sight Range 16 Robot Scan Range 20 Terrain Scan Density 10 Additional Mass Support 9 Armor Coverage 650 Propulsion Shielding 33 Weapon Shielding 100 Weapon Cycling 15 Evasion (%) 40 Armor Integrity Analysis 30 Recoil Reduction 2 Kinecelleration 30 Item Schematics ----------------- Imp. Field Recycling Unit | -7/Zion | Archive Imp. Trap Scanner | -7/Zion | Archive Med. Reactive Plating | -7/Zion | Archive Focal Shield | -7/Zion | Archive Imp. Cooling System | -7/Zion | Archive Phase Shifter | -7/Zion | Archive Shock Absorption System | -7/Zion | Archive Imp. Focal Shield | -7/Zion | Archive KE Penetrator | -7/Zion | Archive Adv. Terrain Scan Processor | -7/Zion | Archive Arm. Leg | -7/Zion | Archive Imp. Shield Generator | -7/Zion | Archive Hyp. Gauss Rifle | -7/Zion | Archive Enh. Optical Array | -7/Zion | Archive Xenon Bombardment Thruster | -7/Zion | Archive Robot Schematics ------------------ S-27 Virus | -7/Zion | Archive K-01 Serf | -7/Zion | Archive L-61 Swordsman | -7/Zion | Archive Fabricated ------------ Nothing Alien Tech Used ----------------- None Achievements -------------- None Challenges ------------ None Game ------ Seed LightningRagnarokSpear Manual? 0 Play Time 00:43:43 Cumulative 371.1 hours Start 2024.10.23 @ 21:09:17 End 2024.10.23 @ 21:51:54 Sessions 1 Manual Loads 0 Difficulty Rogue Special Mode None Game No. 276 Rogue 276 Adventurer 0 Explorer 0 Win Type - Total 7 Types 3/0/3/1/0/0/0/0/0 Lore% 76 Gallery% 83 Achievement% 66 Wizard Run 0 Options --------- Layout 2 ASCII 0 Keyboard 1 Movement Vi Keybinds 0 Fullscreen 2 Font 32/SmallcapsGlow Map View 77x44 Zoom Use 0% Tactical HUD 1 Map Filters NONE Filters NONE Steam 1 RUN: c1975176-962d-4e0c-b590-c9a1f065e7a3